bitfinex/quotes_BTCUSD_20251031
["timestamp","ask_amount","ask_price","bid_price","bid_amount"]
[1761947222220,2.00004811,109800.0,109790.0,0.07822061]
[1761947223570,2.00104811,109800.0,109790.0,0.07822061]
[1761947223923,2.00004811,109800.0,109790.0,0.07822061]
[1761947224151,2.00104811,109800.0,109790.0,0.07822061]
[1761947224781,2.01533529,109800.0,109790.0,0.27860315]
[1761947224981,2.01533529,109800.0,109790.0,0.07822061]
[1761947225185,2.01533529,109800.0,109790.0,0.0964372]
[1761947225403,2.01533529,109800.0,109790.0,0.27860315]
[1761947225606,2.01533529,109800.0,109790.0,0.07822061]
[1761947228482,2.01533529,109800.0,109790.0,0.26038656]
[1761947229106,2.01533529,109800.0,109790.0,0.07822061]
[1761947229321,2.01533529,109800.0,109790.0,0.26038656]
[1761947229756,2.01533529,109800.0,109790.0,0.07822061]
[1761947231583,2.01533529,109800.0,109790.0,0.05084]
[1761947231805,2.00104811,109800.0,109790.0,0.05084]
[1761947233196,2.00104811,109800.0,109790.0,0.57084703]
[1761947233419,0.00104811,109800.0,109790.0,0.75301298]
[1761947234762,0.01533479,109800.0,109790.0,0.75301298]
[1761947235187,0.01433479,109800.0,109790.0,0.75301298]
[1761947235538,0.01433479,109800.0,109790.0,0.78038925]
[1761947235712,0.01433479,109800.0,109790.0,0.78238925]
[1761947238169,4.811e-05,109800.0,109790.0,1.21085891]
[1761947238358,4.811e-05,109800.0,109790.0,0.78238925]
[1761947238890,4.811e-05,109800.0,109790.0,0.78038925]
[1761947239173,4.811e-05,109800.0,109790.0,0.78438925]
[1761947239406,4.811e-05,109800.0,109790.0,0.78538925]
[1761947239612,4.811e-05,109800.0,109790.0,0.78038925]
[1761947239936,4.811e-05,109800.0,109790.0,0.78838925]
[1761947240782,4.811e-05,109800.0,109790.0,1.21685891]
[1761947241567,0.01433292,109800.0,109790.0,1.21685891]
[1761947243497,0.01433292,109800.0,109790.0,0.78770207]
[1761947245356,4.811e-05,109800.0,109790.0,0.78770207]
[1761947245997,4.811e-05,109800.0,109790.0,1.12770207]
[1761947248025,4.811e-05,109800.0,109790.0,1.55548455]
[1761947248539,4.811e-05,109800.0,109790.0,1.12770207]
[1761947255422,4.811e-05,109800.0,109790.0,1.55548455]
[1761947260112,2.39733338,109850.0,109840.0,0.02771]
[1761947260307,2.60549683,109850.0,109840.0,0.02771]
[1761947260517,2.60549683,109850.0,109840.0,0.05181]
[1761947260713,2.58843705,109850.0,109840.0,0.05181]
[1761947261400,2.59443705,109850.0,109840.0,0.05181]
[1761947261608,2.59643705,109850.0,109840.0,0.05181]
[1761947262191,2.59443705,109850.0,109840.0,0.05181]
[1761947262538,2.58843705,109850.0,109840.0,0.05181]
[1761947262862,2.58943705,109850.0,109840.0,0.05181]
[1761947263063,2.56495338,109850.0,109840.0,0.05181]
[1761947263301,2.58202429,109850.0,109840.0,0.05181]
[1761947263876,2.56495338,109850.0,109840.0,0.05181]
[1761947264321,2.58202667,109850.0,109840.0,0.05181]
[1761947268717,2.04286159,109850.0,109840.0,0.05181]
[1761947268936,2.02321412,109850.0,109840.0,0.05181]
[1761947269141,2.01001188,109850.0,109840.0,0.05181]
[1761947270305,2.01001188,109850.0,109840.0,0.0700183]
[1761947273065,2.01001188,109850.0,109840.0,0.05181]
[1761947273195,2.00148199,109850.0,109840.0,0.05181]
[1761947273418,2.01001871,109850.0,109840.0,0.05181]
[1761947274233,2.00148199,109850.0,109840.0,0.05181]
[1761947276701,2.0157631,109850.0,109840.0,0.05181]
[1761947279400,2.00148199,109850.0,109840.0,0.05181]
[1761947282527,2.01576309,109850.0,109840.0,0.05181]
[1761947284685,2.19782954,109850.0,109840.0,0.05181]
[1761947286251,0.1820996,109830.0,109820.0,0.0117]
[1761947286580,2.60988208,109830.0,109820.0,0.03575]
[1761947286791,2.94988208,109830.0,109820.0,0.02688]
[1761947286927,2.18211619,109820.0,109810.0,0.03575]
[1761947287127,2.95843741,109820.0,109810.0,0.02688]
[1761947287326,0.18213277,109810.0,109800.0,0.03591]
[1761947287720,2.60991525,109810.0,109800.0,0.02704]
[1761947288531,2.60991525,109810.0,109800.0,0.05117748]
[1761947289121,2.60991525,109810.0,109800.0,0.02712748]
[1761947289999,2.60991525,109810.0,109800.0,0.02912748]
[1761947290419,2.60991525,109810.0,109800.0,0.02712748]
[1761947291868,2.63729504,109810.0,109800.0,0.02712748]
[1761947294132,2.65158152,109810.0,109800.0,0.02712748]
[1761947294656,2.99158152,109810.0,109800.0,0.05202748]
[1761947294861,2.56379904,109810.0,109800.0,0.05202748]
[1761947297225,2.56379904,109810.0,109800.0,0.02712748]
[1761947297422,2.56379904,109810.0,109800.0,0.05202748]
[1761947298558,2.56379904,109810.0,109800.0,0.02712748]
[1761947298764,2.56379904,109810.0,109800.0,0.04966748]
[1761947300543,2.36737979,109810.0,109800.0,0.04966748]
[1761947300741,2.02737979,109810.0,109800.0,0.04966748]
[1761947301027,0.34,109820.0,109800.0,0.65959932]
[1761947301240,0.36737484,109820.0,109810.0,0.05018]
[1761947301483,0.34,109820.0,109810.0,0.05018]
[1761947302217,0.343,109820.0,109810.0,0.05018]
[1761947302425,0.344,109820.0,109810.0,0.05018]
[1761947302642,0.341,109820.0,109810.0,0.05018]
[1761947303061,0.344,109820.0,109810.0,0.05018]
[1761947303468,0.35828482,109820.0,109810.0,0.05018]
[1761947303877,0.01828482,109820.0,109810.0,0.05018]
[1761947304969,2.20040101,109820.0,109810.0,0.02764]
[1761947305168,2.20040101,109820.0,109810.0,0.05018]
[1761947305374,2.62830476,109820.0,109810.0,0.05018]
[1761947305573,2.62830476,109820.0,109810.0,0.02764]
[1761947306259,2.62830476,109820.0,109810.0,0.05018]
[1761947306851,2.20040101,109820.0,109810.0,0.05018]
[1761947312039,2.62830476,109820.0,109810.0,0.05018]
[1761947313727,2.61401994,109820.0,109810.0,0.05018]
[1761947315464,2.62255482,109820.0,109810.0,0.02764]
[1761947315666,2.9822184,109820.0,109810.0,0.01242]
[1761947315878,2.18213277,109810.0,109800.0,0.03448748]
[1761947316105,2.18213277,109810.0,109800.0,0.04970748]
[1761947316292,2.61003652,109810.0,109800.0,0.04970748]
[1761947316824,2.62432267,109810.0,109800.0,0.04970748]
[1761947317034,2.65254756,109810.0,109800.0,0.04970748]
[1761947317456,2.63926141,109810.0,109800.0,0.04970748]
[1761947320044,2.63926141,109810.0,109800.0,0.02716748]
[1761947320448,2.63926141,109810.0,109800.0,0.04970748]
[1761947320642,2.65354796,109810.0,109800.0,0.04970748]
[1761947321731,2.65354796,109810.0,109800.0,0.02716748]
[1761947321907,2.67063446,109810.0,109800.0,8.748e-05]
[1761947322512,3.01063446,109810.0,109800.0,8.748e-05]
[1761947322906,2.98500509,109810.0,109800.0,8.748e-05]
[1761947323391,2.99354844,109810.0,109800.0,8.748e-05]
[1761947324072,2.98500509,109810.0,109800.0,8.748e-05]
[1761947324503,2.99929655,109810.0,109800.0,8.748e-05]
[1761947324831,3.02492687,109810.0,109800.0,8.748e-05]
[1761947325523,3.01063541,109810.0,109800.0,8.748e-05]
[1761947328298,3.47522426,109810.0,109800.0,8.748e-05]
[1761947328624,3.48021315,109810.0,109800.0,8.748e-05]
[1761947328786,3.4659266,109810.0,109800.0,8.748e-05]
[1761947329362,3.50210888,109810.0,109800.0,8.748e-05]
[1761947330714,3.53483654,109810.0,109800.0,8.748e-05]
[1761947331391,3.53383654,109810.0,109800.0,8.748e-05]
[1761947331617,3.60111675,109810.0,109800.0,8.748e-05]
[1761947332311,3.61540518,109810.0,109800.0,8.748e-05]
[1761947332538,3.55512497,109810.0,109800.0,8.748e-05]
[1761947332763,3.55812497,109810.0,109800.0,8.748e-05]
[1761947336932,3.53844295,109810.0,109800.0,8.748e-05]
[1761947337141,3.50571529,109810.0,109800.0,8.748e-05]
[1761947337350,3.50949992,109810.0,109800.0,8.748e-05]
[1761947337557,3.75259992,109810.0,109800.0,8.748e-05]
[1761947337752,3.83143451,109810.0,109800.0,8.748e-05]
[1761947337952,3.75259992,109810.0,109800.0,8.748e-05]
[1761947339350,3.73830759,109810.0,109800.0,8.748e-05]
[1761947342436,3.72401916,109810.0,109800.0,8.748e-05]
[1761947345454,3.82984638,109810.0,109800.0,8.748e-05]
[1761947347238,3.91174788,109810.0,109800.0,8.748e-05]
[1761947349357,4.00156689,109810.0,109800.0,8.748e-05]
[1761947350270,4.00155486,109810.0,109800.0,8.748e-05]
[1761947350478,3.91173585,109810.0,109800.0,8.748e-05]
[1761947351330,3.89744605,109810.0,109800.0,8.748e-05]
[1761947351560,3.87006439,109810.0,109800.0,8.748e-05]
[1761947353988,3.9271228,109810.0,109800.0,8.748e-05]
[1761947354574,3.94141236,109810.0,109800.0,8.748e-05]
[1761947356213,3.95570664,109810.0,109800.0,8.748e-05]
[1761947360203,3.90656574,109810.0,109800.0,8.748e-05]
[1761947360397,3.95582669,109810.0,109800.0,8.748e-05]
[1761947363284,3.95583676,109810.0,109800.0,8.748e-05]
[1761947365334,3.90657581,109810.0,109800.0,8.748e-05]
[1761947366731,4.33447956,109810.0,109800.0,8.748e-05]
[1761947366939,4.39993489,109810.0,109800.0,8.748e-05]
[1761947367391,3.97275286,109810.0,109800.0,8.748e-05]
[1761947370795,3.9584633,109810.0,109800.0,8.748e-05]
[1761947373586,3.95850287,109810.0,109800.0,8.748e-05]
[1761947373986,3.97279264,109810.0,109800.0,8.748e-05]
[1761947376279,3.97279239,109810.0,109800.0,8.748e-05]
[1761947376489,4.17279239,109810.0,109800.0,8.748e-05]
[1761947378855,4.17279582,109810.0,109800.0,8.748e-05]
[1761947380173,3.88297681,109810.0,109800.0,8.748e-05]
[1761947380372,3.4547122,109810.0,109800.0,8.748e-05]
[1761947380686,3.88297681,109810.0,109800.0,8.748e-05]
[1761947381383,3.81752148,109810.0,109800.0,8.748e-05]
[1761947381702,3.38925687,109810.0,109800.0,8.748e-05]
[1761947382713,2.96099226,109810.0,109800.0,8.748e-05]
[1761947382889,3.38925687,109810.0,109800.0,8.748e-05]
[1761947383113,3.4175709,109810.0,109800.0,8.748e-05]
[1761947383831,3.40045668,109810.0,109800.0,8.748e-05]
[1761947384036,3.41756884,109810.0,109800.0,8.748e-05]
[1761947385005,3.38925481,109810.0,109800.0,8.748e-05]
[1761947385813,3.38925481,109810.0,109800.0,0.05277748]
[1761947385814,2.95652291,109810.0,109800.0,0.05277748]
[1761947386022,2.94009378,109810.0,109800.0,0.05277748]
[1761947386222,3.28009378,109810.0,109800.0,0.05277748]
[1761947387157,3.24424088,109810.0,109800.0,0.05277748]
[1761947387395,3.23095111,109810.0,109800.0,0.05277748]
[1761947388119,3.22395111,109810.0,109800.0,0.05277748]
[1761947388315,3.22595111,109810.0,109800.0,0.05277748]
[1761947389167,3.22592818,109810.0,109800.0,0.05277748]
[1761947390568,3.24021581,109810.0,109800.0,0.05277748]
[1761947391392,2.8119512,109810.0,109800.0,0.05277748]
[1761947391594,3.24021581,109810.0,109800.0,0.05277748]
[1761947392492,3.22312658,109810.0,109800.0,0.05277748]
[1761947394846,3.20883895,109810.0,109800.0,0.05277748]
[1761947397884,3.22312662,109810.0,109800.0,0.05277748]
[1761947400744,3.20883895,109810.0,109800.0,0.05277748]
[1761947402541,3.24390509,109810.0,109800.0,0.05277748]
[1761947402754,3.20883895,109810.0,109800.0,0.01216748]
[1761947403286,3.20883895,109810.0,109800.0,0.02833748]
[1761947404086,3.22312663,109810.0,109800.0,0.02833748]
[1761947404374,0.01728768,109810.0,109800.0,0.68140638]
[1761947404582,2.0,109830.0,109800.0,0.2440343]
[1761947404781,2.02819087,109830.0,109820.0,0.01202]
[1761947404996,2.64641508,109830.0,109820.0,0.02819]
[1761947405199,3.01641966,109830.0,109820.0,0.02819]
[1761947405972,3.01741966,109830.0,109820.0,0.02819]
[1761947406311,2.82748711,109830.0,109820.0,0.02819]
[1761947406520,2.80782905,109830.0,109820.0,0.02819]
[1761947407068,2.62772945,109830.0,109820.0,0.02819]
[1761947407271,2.38156444,109830.0,109820.0,0.02819]
[1761947407472,2.61919664,109830.0,109820.0,0.02819]
[1761947407673,2.80129624,109830.0,109820.0,0.02819]
[1761947407870,2.78557624,109830.0,109820.0,0.05263]
[1761947409501,2.5775438,109830.0,109820.0,0.05263]
[1761947411279,2.5932638,109830.0,109820.0,0.05263]
[1761947412235,2.5932638,109830.0,109820.0,0.02819]
[1761947412431,2.3875842,109830.0,109820.0,0.02819]
[1761947412662,1.95931959,109830.0,109820.0,0.05263]
[1761947413287,1.95731959,109830.0,109820.0,0.05263]
[1761947413697,1.95731959,109830.0,109820.0,0.05363]
[1761947414317,1.95631959,109830.0,109820.0,0.05363]
[1761947414719,2.5902638,109830.0,109820.0,0.02919]
[1761947415405,2.59879237,109830.0,109820.0,0.02919]
[1761947415626,2.61451237,109830.0,109820.0,0.001]
[1761947416587,1.7841512,109820.0,109810.0,0.03461]
[1761947416873,0.18213277,109810.0,109800.0,0.06213125]
[1761947417084,2.21243239,109810.0,109800.0,0.04993748]
[1761947419148,2.21243239,109810.0,109800.0,0.05293748]
[1761947419821,2.21243239,109810.0,109800.0,0.04993748]
[1761947420034,2.21443239,109810.0,109800.0,0.04993748]
[1761947420689,2.21543239,109810.0,109800.0,0.04993748]
[1761947427395,2.21518714,109810.0,109800.0,0.04993748]
[1761947428660,2.22947939,109810.0,109800.0,0.04993748]
[1761947430246,2.24914829,109810.0,109800.0,0.04993748]
[1761947431967,2.25699829,109810.0,109800.0,0.04993748]
[1761947432597,2.27270829,109810.0,109800.0,0.04993748]
[1761947434524,2.27270829,109810.0,109800.0,0.02734748]
[1761947438285,2.27270829,109810.0,109800.0,0.05154748]
[1761947438918,2.27270829,109810.0,109800.0,0.02734748]
[1761947439324,2.28124828,109810.0,109800.0,0.02734748]
[1761947439556,2.28125555,109810.0,109800.0,0.02734748]
[1761947441764,2.2669633,109810.0,109800.0,0.02734748]
[1761947442224,2.2669633,109810.0,109800.0,0.05154748]
[1761947442419,2.2669633,109810.0,109800.0,0.02734748]
[1761947443215,2.28405234,109810.0,109800.0,0.02734748]
[1761947444258,2.28405649,109810.0,109800.0,0.02734748]
[1761947445353,2.2755165,109810.0,109800.0,0.02734748]
[1761947445756,2.25842331,109810.0,109800.0,0.05025748]
[1761947447342,2.27552976,109810.0,109800.0,0.02734748]
[1761947448110,2.25842331,109810.0,109800.0,0.02734748]
[1761947448314,2.27271503,109810.0,109800.0,0.02734748]
[1761947450852,2.29837818,109810.0,109800.0,0.05025748]
[1761947451405,2.29837818,109810.0,109800.0,0.02734748]
[1761947451608,2.29837818,109810.0,109800.0,0.05025748]
[1761947452013,2.29837818,109810.0,109800.0,0.02734748]
[1761947453744,2.29837818,109810.0,109800.0,0.01216748]
[1761947453972,2.63837818,109810.0,109800.0,8.748e-05]
[1761947454317,2.65408818,109810.0,109800.0,8.748e-05]
[1761947454714,2.65408703,109810.0,109800.0,8.748e-05]
[1761947456070,3.08210639,109810.0,109800.0,8.748e-05]
[1761947457943,3.08213657,109810.0,109800.0,8.748e-05]
[1761947458561,3.06243022,109810.0,109800.0,8.748e-05]
[1761947459130,3.08213722,109810.0,109800.0,8.748e-05]
[1761947459331,3.11498269,109810.0,109800.0,8.748e-05]
[1761947464221,3.08213768,109810.0,109800.0,8.748e-05]
[1761947464428,3.11498269,109810.0,109800.0,8.748e-05]
[1761947465202,3.13687325,109810.0,109800.0,8.748e-05]
[1761947468520,3.13686658,109810.0,109800.0,8.748e-05]
[1761947469135,3.18614861,109810.0,109800.0,8.748e-05]
[1761947469837,3.1533036,109810.0,109800.0,8.748e-05]
[1761947470240,3.5964036,109810.0,109800.0,8.748e-05]
[1761947470615,4.02442296,109810.0,109800.0,8.748e-05]
[1761947470843,4.02242296,109810.0,109800.0,8.748e-05]
[1761947471194,4.02842296,109810.0,109800.0,8.748e-05]
[1761947471395,3.6004036,109810.0,109800.0,8.748e-05]
[1761947471601,3.5994036,109810.0,109800.0,8.748e-05]
[1761947471852,3.6014036,109810.0,109800.0,8.748e-05]
[1761947472195,3.63420522,109810.0,109800.0,8.748e-05]
[1761947473057,4.02942296,109810.0,109800.0,8.748e-05]
[1761947473266,4.11924197,109810.0,109800.0,8.748e-05]
[1761947473482,4.02942296,109810.0,109800.0,8.748e-05]
[1761947473721,4.03942295,109810.0,109800.0,8.748e-05]
[1761947474170,4.04307448,109810.0,109800.0,8.748e-05]
[1761947476372,4.13461185,109810.0,109800.0,8.748e-05]
[1761947477065,4.22443086,109810.0,109800.0,8.748e-05]
[1761947477981,4.13461185,109810.0,109800.0,8.748e-05]
[1761947478416,3.89151185,109810.0,109800.0,8.748e-05]
[1761947478871,3.90580594,109810.0,109800.0,8.748e-05]
[1761947479084,2.60745377,109810.0,109800.0,8.748e-05]
[1761947479317,3.46349249,109810.0,109800.0,8.748e-05]
[1761947480222,3.4534925,109810.0,109800.0,8.748e-05]
[1761947480391,3.46349249,109810.0,109800.0,8.748e-05]
[1761947482989,3.4534925,109810.0,109800.0,8.748e-05]
[1761947483170,3.46349249,109810.0,109800.0,8.748e-05]
[1761947483787,3.4534925,109810.0,109800.0,8.748e-05]
[1761947484035,3.46349249,109810.0,109800.0,8.748e-05]
[1761947485744,3.25593925,109810.0,109800.0,8.748e-05]
[1761947486168,3.43807202,109810.0,109800.0,8.748e-05]
[1761947486860,3.42807203,109810.0,109800.0,8.748e-05]
[1761947487170,3.43807202,109810.0,109800.0,8.748e-05]
[1761947489370,3.43848254,109810.0,109800.0,8.748e-05]
[1761947490214,3.42848255,109810.0,109800.0,8.748e-05]
[1761947491491,3.51830156,109810.0,109800.0,8.748e-05]
[1761947494417,3.56758359,109810.0,109800.0,8.748e-05]
[1761947495649,3.55096835,109810.0,109800.0,8.748e-05]
[1761947498271,2.23968088,109790.0,109780.0,0.00022203]
[1761947498487,2.33342944,109790.0,109780.0,0.00036681]
[1761947498710,2.35699944,109790.0,109780.0,0.00036681]
[1761947499604,2.44953681,109790.0,109780.0,0.00036681]
[1761947499818,2.45053681,109790.0,109780.0,0.00036681]
[1761947504692,2.45053681,109790.0,109780.0,0.00051159]
[1761947508695,2.4648308,109790.0,109780.0,0.00051159]
[1761947508930,2.49221899,109790.0,109780.0,0.00051159]
[1761947514840,2.49222863,109790.0,109780.0,0.00051159]
[1761947517618,2.54149728,109790.0,109780.0,0.00051159]
[1761947519552,2.49222863,109790.0,109780.0,0.00051159]
[1761947519755,2.58204764,109790.0,109780.0,0.00051159]
[1761947520195,2.63131629,109790.0,109780.0,0.00051159]
[1761947521075,2.54149728,109790.0,109780.0,0.00051159]
[1761947521724,2.51024728,109790.0,109780.0,0.00051159]
[1761947521943,2.52546728,109790.0,109780.0,0.01668159]
[1761947522360,2.54117728,109790.0,109780.0,0.00051159]
[1761947523533,2.54118226,109790.0,109780.0,0.00051159]
[1761947524450,2.63100127,109790.0,109780.0,0.00051159]
[1761947526973,2.42480133,109790.0,109780.0,0.05376159]
[1761947527360,2.44002133,109790.0,109780.0,0.02886159]
[1761947527560,2.41263314,109790.0,109780.0,0.02886159]
[1761947527763,2.44001965,109790.0,109780.0,0.02886159]
[1761947529963,1.71501171,109790.0,109780.0,0.05376159]
[1761947530165,1.83694538,109790.0,109780.0,0.05376159]
[1761947531678,1.65463562,109790.0,109780.0,0.05376159]
[1761947531922,2.24645826,109790.0,109780.0,0.05376159]
[1761947532123,2.24383735,109790.0,109780.0,0.05376159]
[1761947534476,2.67206197,109790.0,109780.0,0.05376159]
[1761947534897,2.24383735,109790.0,109780.0,0.05376159]
[1761947538995,2.0616714,109790.0,109780.0,0.05376159]
[1761947539146,2.24383735,109790.0,109780.0,0.05376159]
[1761947541998,0.01629399,109790.0,109780.0,0.48198621]
[1761947542182,0.01629399,109790.0,109780.0,0.69154894]
[1761947542632,0.002,109790.0,109780.0,0.69154894]
[1761947543046,0.001,109790.0,109780.0,0.69154894]
[1761947543495,0.001,109790.0,109780.0,0.69454894]
[1761947543699,2.0,109790.0,109780.0,0.69454894]
[1761947543901,2.0,109790.0,109780.0,0.69554894]
[1761947547488,2.0,109790.0,109780.0,0.78708631]
[1761947549469,2.0,109800.0,109780.0,0.78708631]
[1761947549679,2.0,109800.0,109790.0,0.051]
[1761947550295,2.0,109800.0,109790.0,0.07838019]
[1761947551437,2.0,109800.0,109790.0,0.50634294]
[1761947552353,2.0,109800.0,109790.0,0.50734294]
[1761947555298,2.0,109800.0,109790.0,0.47996275]
[1761947559493,2.0,109800.0,109790.0,0.052]
[1761947559728,2.0,109800.0,109790.0,0.47996275]
[1761947570655,2.0,109800.0,109790.0,0.6621287]
[1761947571647,2.0,109800.0,109790.0,0.68950709]
[1761947575870,1.80594903,109800.0,109790.0,0.68950709]
[1761947576102,2.0,109800.0,109790.0,0.68950709]
[1761947578534,2.0,109800.0,109790.0,1.11746984]
[1761947578740,0.00283351,109810.0,109800.0,0.18214936]
[1761947578947,0.00283351,109810.0,109800.0,1.18189223]
[1761947579991,0.1833703,109830.0,109800.0,1.18189223]
[1761947580197,2.0,109820.0,109810.0,0.46462275]
[1761947580415,2.00854953,109820.0,109810.0,0.46462275]
[1761947580623,2.0,109820.0,109810.0,0.48024275]
[1761947581774,2.0,109820.0,109810.0,0.48424275]
[1761947585455,2.0,109820.0,109810.0,1.09433827]
[1761947585675,0.01883396,109830.0,109820.0,0.18211619]
[1761947585882,0.01556099,109830.0,109820.0,1.09032169]
[1761947586473,0.01556099,109830.0,109820.0,1.11769274]
[1761947586918,0.00135847,109830.0,109820.0,1.12269274]
[1761947587133,0.31825079,109850.0,109820.0,1.12269274]
[1761947587345,2.0,109840.0,109830.0,0.46462275]
[1761947587771,2.0,109840.0,109830.0,0.48024275]
[1761947588595,2.0,109840.0,109830.0,0.48124275]
[1761947589967,2.0,109840.0,109830.0,0.48224275]
[1761947593054,2.00022184,109840.0,109830.0,0.48224275]
[1761947595945,2.00022184,109840.0,109830.0,0.57378012]
[1761947596801,0.00022184,109840.0,109830.0,0.57378012]
[1761947601562,0.00022184,109840.0,109830.0,1.56002475]
[1761947601791,0.00022184,109840.0,109830.0,1.75407475]
[1761947602267,0.00022184,109840.0,109830.0,1.77943451]
[1761947602502,0.00022184,109840.0,109830.0,1.78643451]
[1761947602705,0.00022184,109840.0,109830.0,1.78943451]
[1761947602919,0.00022184,109840.0,109830.0,1.78243451]
[1761947604252,0.00022184,109840.0,109830.0,1.79043451]
[1761947610434,0.00422184,109840.0,109830.0,1.79043451]
[1761947611078,0.00422184,109840.0,109830.0,0.58278012]
[1761947611396,0.00422184,109840.0,109830.0,0.5824412]
[1761947611919,0.00422184,109840.0,109830.0,0.5714412]
[1761947612125,0.00422184,109840.0,109830.0,0.5724412]
[1761947612505,0.00422184,109840.0,109830.0,0.14881737]
[1761947618760,0.18630486,109840.0,109830.0,0.05728]
[1761947619713,0.00422184,109840.0,109830.0,0.05728]
[1761947620498,0.18630486,109840.0,109830.0,0.05728]
[1761947620721,0.00422184,109840.0,109830.0,0.05728]
[1761947621172,0.18630486,109840.0,109830.0,0.05728]
[1761947621406,0.18630486,109840.0,109830.0,0.05328]
[1761947621648,0.20268964,109840.0,109830.0,0.05428]
[1761947621845,2.21839964,109840.0,109830.0,0.002]
[1761947622061,2.23410964,109840.0,109830.0,0.002]
[1761947622290,2.21839964,109840.0,109830.0,0.01755]
[1761947622502,2.21839964,109840.0,109830.0,0.02997]
[1761947622707,2.21839964,109840.0,109830.0,0.01442]
[1761947622913,2.21839964,109840.0,109830.0,0.01242]
[1761947623138,0.1820996,109830.0,109820.0,0.03496]
[1761947623352,2.1820996,109830.0,109820.0,0.03496]
[1761947623645,2.19062393,109830.0,109820.0,0.05065]
[1761947624913,2.19162191,109830.0,109820.0,0.05065]
[1761947625168,2.1830996,109830.0,109820.0,0.05065]
[1761947625420,2.1984096,109830.0,109820.0,0.02809]
[1761947625699,2.1984096,109830.0,109820.0,0.05169]
[1761947627679,2.1830996,109830.0,109820.0,0.05169]
[1761947629553,0.52211619,109820.0,109800.0,0.05]
[1761947629762,2.9886266,109810.0,109800.0,0.05]
[1761947631052,2.9886266,109810.0,109800.0,0.05008777]
[1761947631266,2.79302742,109810.0,109800.0,0.05008777]
[1761947632470,2.80731949,109810.0,109800.0,0.05008777]
[1761947632697,2.81131949,109810.0,109800.0,0.05008777]
[1761947639315,2.79560949,109810.0,109800.0,0.05008777]
[1761947639564,2.81131949,109810.0,109800.0,0.05008777]
[1761947643488,2.81982243,109810.0,109800.0,0.05008777]
[1761947646374,2.83683398,109810.0,109800.0,0.05008777]
[1761947647217,2.85643879,109810.0,109800.0,0.05008777]
[1761947647654,2.42881496,109810.0,109800.0,0.05008777]
[1761947647874,2.85643879,109810.0,109800.0,0.05008777]
[1761947651203,2.84214672,109810.0,109800.0,0.05008777]
[1761947653941,2.41452289,109810.0,109800.0,0.05008777]
[1761947656147,2.39881289,109810.0,109800.0,0.06571777]
[1761947656351,2.41452289,109810.0,109800.0,0.05008777]
[1761947656997,2.41852289,109810.0,109800.0,0.05008777]
[1761947659286,2.45136866,109810.0,109800.0,0.05008777]
[1761947659909,2.87899249,109810.0,109800.0,0.05008777]
[1761947666390,2.86328249,109810.0,109800.0,0.05008777]
[1761947666820,2.87899249,109810.0,109800.0,0.05008777]
[1761947671307,2.87940366,109810.0,109800.0,0.05008777]
[1761947674327,2.84655789,109810.0,109800.0,0.05008777]
[1761947677553,2.83084789,109810.0,109800.0,0.05008777]
[1761947678104,2.84655789,109810.0,109800.0,0.05008777]
[1761947681766,2.86085024,109810.0,109800.0,0.05008777]
[1761947684767,2.84514024,109810.0,109800.0,0.05008777]
[1761947685629,2.86085024,109810.0,109800.0,0.05008777]
[1761947695254,2.43281524,109810.0,109800.0,0.05008777]
[1761947695593,2.86085024,109810.0,109800.0,0.05008777]
[1761947696360,2.65848662,109810.0,109800.0,0.05008777]
[1761947700066,2.63888181,109810.0,109800.0,0.05008777]
[1761947701506,2.65859941,109810.0,109800.0,0.05008777]
[1761947703122,2.64288941,109810.0,109800.0,0.06541777]
[1761947703272,2.65859941,109810.0,109800.0,0.05008777]
[1761947704825,2.69478169,109810.0,109800.0,0.05008777]
[1761947705147,2.68048934,109810.0,109800.0,0.05008777]
[1761947706944,1.08045214,109810.0,109800.0,0.05008777]
[1761947707720,4.08045214,109810.0,109800.0,0.05008777]
[1761947708598,4.09474424,109810.0,109800.0,0.05008777]
[1761947712289,4.18456325,109810.0,109800.0,0.05008777]
[1761947712513,4.09474424,109810.0,109800.0,0.05008777]
[1761947715846,4.55564191,109810.0,109800.0,0.05008777]
[1761947716853,4.60493592,109810.0,109800.0,0.05008777]
[1761947717202,4.55564191,109810.0,109800.0,0.05008777]
[1761947717400,4.60493592,109810.0,109800.0,0.05008777]
[1761947719182,4.57207325,109810.0,109800.0,0.05008777]
[1761947720218,4.80490011,109810.0,109800.0,0.05008777]
[1761947721068,4.75778115,109810.0,109800.0,0.05008777]
[1761947721280,4.79060241,109810.0,109800.0,0.05008777]
[1761947721691,4.75778115,109810.0,109800.0,0.05008777]
[1761947721897,4.84760016,109810.0,109800.0,0.05008777]
[1761947723346,4.88041158,109810.0,109800.0,0.05008777]
[1761947724235,4.89470582,109810.0,109800.0,0.05008777]
[1761947724912,4.8618944,109810.0,109800.0,0.05008777]
[1761947725354,4.87618341,109810.0,109800.0,0.05008777]
[1761947726394,4.90357042,109810.0,109800.0,0.05008777]
[1761947729436,4.93636068,109810.0,109800.0,0.0313782]
[1761947729676,4.93646334,109810.0,109800.0,0.0313782]
[1761947730081,4.92217433,109810.0,109800.0,0.0313782]
[1761947730282,4.87288032,109810.0,109800.0,0.0313782]
[1761947730700,0.52214936,109800.0,109790.0,0.00127093]
[1761947731007,4.63633049,109800.0,109790.0,0.00127093]
[1761947731348,4.63684255,109800.0,109790.0,0.00127093]
[1761947732022,4.66963281,109800.0,109790.0,0.00127093]
[1761947732620,4.67328467,109800.0,109790.0,0.00127093]
[1761947732823,4.66963281,109800.0,109790.0,0.00127093]
[1761947733198,4.63684255,109800.0,109790.0,0.00127093]
[1761947733396,4.65113295,109800.0,109790.0,0.00127093]
[1761947734138,4.65478481,109800.0,109790.0,0.00127093]
[1761947734364,4.65978481,109800.0,109790.0,0.00127093]
[1761947734562,4.72295516,109800.0,109790.0,0.00127093]
[1761947734738,4.72860702,109800.0,109790.0,0.00127093]
[1761947734936,4.72495516,109800.0,109790.0,0.00127093]
[1761947735747,4.72860702,109800.0,109790.0,0.00127093]
[1761947736954,4.72860702,109800.0,109790.0,0.00112093]
[1761947738110,4.74290184,109800.0,109790.0,0.00112093]
[1761947739088,4.7756921,109800.0,109790.0,0.00112093]
[1761947740165,3.91911004,109800.0,109790.0,0.00112093]
[1761947740377,4.7756921,109800.0,109790.0,0.00112093]
[1761947743206,4.82498611,109800.0,109790.0,0.00112093]
[1761947744255,4.82499225,109800.0,109790.0,0.00112093]
[1761947744556,4.55437375,109800.0,109790.0,0.00112093]
[1761947744755,4.73652311,109800.0,109790.0,0.00112093]
[1761947745102,4.76931337,109800.0,109790.0,0.00112093]
[1761947745450,3.91273131,109800.0,109790.0,0.00112093]
[1761947745707,4.76931337,109800.0,109790.0,0.00112093]
[1761947747455,4.75502297,109800.0,109790.0,0.00112093]
[1761947750501,4.75503495,109800.0,109790.0,0.00112093]
[1761947754618,4.7715387,109800.0,109790.0,0.00112093]
[1761947756030,4.75842697,109800.0,109790.0,0.00112093]
[1761947756232,4.76842696,109800.0,109790.0,0.00112093]
[1761947756366,4.18663926,109790.0,109780.0,0.00014478]
[1761947756557,4.36347225,109790.0,109780.0,0.00028956]
[1761947756984,4.3671245,109790.0,109780.0,0.00028956]
[1761947757582,4.3691245,109790.0,109780.0,0.00028956]